bitfinex/quotes_BTCUSD_20251212
["timestamp","ask_amount","ask_price","bid_price","bid_amount"]
[1765553114279,0.01092442,91538.0,91535.0,0.00161287]
[1765553114559,0.21849088,91537.0,91535.0,0.00161287]
[1765553114776,0.21849088,91537.0,91535.0,0.00200072]
[1765553115032,0.23601088,91537.0,91535.0,0.00200072]
[1765553115237,0.23601088,91537.0,91535.0,0.00038785]
[1765553115446,0.01092418,91540.0,91535.0,0.00200072]
[1765553115674,0.0285478,91559.0,91535.0,0.00200072]
[1765553115675,0.0285478,91577.0,91556.0,0.01594]
[1765553115875,0.01673191,91577.0,91557.0,0.01594]
[1765553116099,0.01092132,91564.0,91557.0,0.00161287]
[1765553116295,0.01092287,91551.0,91545.0,0.01092358]
[1765553116500,0.01673191,91557.0,91546.0,0.01092347]
[1765553116707,0.01092311,91549.0,91546.0,0.00161287]
[1765553116949,0.01092072,91569.0,91557.0,0.01594]
[1765553117181,0.01092156,91562.0,91557.0,0.02847502]
[1765553117401,0.0109212,91565.0,91560.0,0.01092179]
[1765553117570,0.02765323,91564.0,91561.0,0.01092168]
[1765553117774,0.01092144,91563.0,91560.0,0.00161287]
[1765553117972,0.01092191,91559.0,91556.0,0.01092227]
[1765553118298,0.01092144,91563.0,91556.0,0.01092227]
[1765553118299,0.01673191,91560.0,91558.0,0.00161287]
[1765553118500,0.22934467,91566.0,91558.0,0.0375449]
[1765553118501,0.0109212,91565.0,91558.0,0.0375449]
[1765553118794,0.0109212,91565.0,91558.0,0.00161287]
[1765553118997,0.22933933,91568.0,91565.0,0.01607]
[1765553118998,0.21842168,91566.0,91565.0,0.01607]
[1765553119420,0.01092156,91562.0,91558.0,0.00161287]
[1765553119622,0.01092168,91561.0,91558.0,0.00161287]
[1765553119766,0.0109212,91565.0,91562.0,0.01092156]
[1765553120133,0.01092096,91567.0,91562.0,0.01092156]
[1765553120134,0.01091989,91576.0,91568.0,0.01092084]
[1765553120347,0.01091953,91579.0,91562.0,0.00038785]
[1765553120348,0.21836921,91588.0,91578.0,0.01091965]
[1765553120632,0.01091929,91581.0,91578.0,0.00161287]
[1765553120845,0.02885,91593.0,91562.0,0.00038785]
[1765553120846,0.0109212,91565.0,91562.0,0.00038785]
[1765553121055,0.01673191,91569.0,91566.0,0.01092108]
[1765553121268,0.21842742,91564.0,91562.0,0.00200072]
[1765553121486,0.01673191,91563.0,91562.0,0.00038785]
[1765553122164,0.22934707,91565.0,91562.0,0.00038785]
[1765553122384,0.21842884,91563.0,91562.0,0.00038785]
[1765553122596,0.21842884,91563.0,91562.0,0.00138785]
[1765553123097,0.22934707,91565.0,91562.0,0.00138785]
[1765553123098,0.0109212,91565.0,91562.0,0.00138785]
[1765553123251,0.23515836,91564.0,91562.0,0.00238785]
[1765553123462,0.07380655,91563.0,91562.0,0.00238785]
[1765553123661,0.40073655,91563.0,91562.0,0.00138785]
[1765553123861,0.01756,91563.0,91562.0,0.00138785]
[1765553124452,0.21842645,91564.0,91562.0,0.00038785]
[1765553124670,0.01673191,91563.0,91562.0,0.00038785]
[1765553124851,0.01673191,91563.0,91562.0,0.00238785]
[1765553125516,0.01673191,91563.0,91562.0,0.00038785]
[1765553125997,0.22933185,91571.0,91562.0,0.00038785]
[1765553125998,0.01091929,91581.0,91576.0,0.01091989]
[1765553126220,0.01091858,91587.0,91583.0,0.01091905]
[1765553126434,0.02802191,91593.0,91583.0,0.01091905]
[1765553126435,0.01091786,91593.0,91590.0,0.01091822]
[1765553126661,0.0285478,91610.0,91599.0,0.01091714]
[1765553126879,0.0285478,91610.0,91597.0,0.01091738]
[1765553126880,0.24680311,91606.0,91597.0,0.01091738]
[1765553127110,0.01091655,91604.0,91597.0,0.01253025]
[1765553127325,0.01091703,91600.0,91597.0,0.00161287]
[1765553127742,0.22937489,91600.0,91597.0,0.00161287]
[1765553127955,0.00011693,91600.0,91599.0,0.02499]
[1765553128425,0.00011693,91600.0,91599.0,0.06404287]
[1765553128642,0.00011693,91600.0,91599.0,0.10724287]
[1765553130089,0.00011693,91600.0,91599.0,0.12480287]
[1765553130299,0.00011693,91600.0,91599.0,0.12580287]
[1765553130729,0.00011693,91600.0,91599.0,0.12480287]
[1765553130940,0.00232799,91609.0,91608.0,0.0432]
[1765553131155,0.00232799,91609.0,91608.0,0.06980287]
[1765553131376,0.00232799,91609.0,91608.0,0.00161287]
[1765553131592,0.00232799,91609.0,91608.0,0.03905287]
[1765553131795,0.00232799,91609.0,91608.0,0.06404287]
[1765553132296,0.00332799,91609.0,91608.0,0.01461287]
[1765553132492,0.00332799,91609.0,91608.0,0.00761287]
[1765553132626,0.00232799,91609.0,91608.0,0.07004287]
[1765553132827,0.00232799,91609.0,91608.0,0.01061287]
[1765553133390,0.00232799,91609.0,91608.0,0.00461287]
[1765553133812,0.00232799,91609.0,91608.0,0.00661287]
[1765553134022,0.00232799,91609.0,91608.0,0.003]
[1765553134228,0.0793699,91609.0,91608.0,0.003]
[1765553134391,0.0793699,91609.0,91608.0,0.006]
[1765553134570,0.0793699,91609.0,91608.0,0.003]
[1765553134778,0.0793699,91609.0,91583.0,0.01799]
[1765553134779,0.01091798,91592.0,91583.0,0.01799]
[1765553134980,0.01091691,91601.0,91595.0,0.01091762]
[1765553135165,0.01091619,91607.0,91603.0,0.01091667]
[1765553135530,0.01324394,91609.0,91604.0,0.01091655]
[1765553135666,0.00232799,91609.0,91608.0,0.02499]
[1765553135883,0.00332799,91609.0,91608.0,0.02499]
[1765553136091,0.00332799,91609.0,91608.0,0.06243]
[1765553136328,0.00232799,91609.0,91608.0,0.02499]
[1765553136540,0.00432799,91609.0,91608.0,0.02499]
[1765553137377,0.01091619,91607.0,91604.0,0.00361287]
[1765553137586,0.00232799,91609.0,91607.0,0.21832281]
[1765553137793,0.00232799,91609.0,91608.0,0.02599]
[1765553137997,0.00232799,91609.0,91608.0,0.06343]
[1765553138210,0.00232799,91609.0,91608.0,0.10824287]
[1765553138414,0.00232799,91609.0,91608.0,0.11024287]
[1765553139066,0.00232799,91609.0,91608.0,0.10824287]
[1765553139282,0.00232799,91609.0,91608.0,0.06504287]
[1765553139489,0.00332799,91609.0,91608.0,0.11524287]
[1765553139925,0.00332799,91609.0,91608.0,0.13607502]
[1765553140135,0.00332799,91609.0,91608.0,0.14207502]
[1765553140345,0.00332799,91609.0,91608.0,0.13607502]
[1765553140760,0.00332799,91609.0,91608.0,0.09887502]
[1765553140964,0.00232799,91609.0,91608.0,0.07004287]
[1765553141146,0.00232799,91609.0,91608.0,0.10939502]
[1765553141349,0.00332799,91609.0,91608.0,0.11739502]
[1765553141554,0.00332799,91609.0,91608.0,0.11139502]
[1765553141763,0.00332799,91609.0,91608.0,0.14659502]
[1765553141764,0.00232799,91609.0,91608.0,0.14659502]
[1765553142203,0.00232799,91609.0,91608.0,0.15259502]
[1765553142469,0.00232799,91609.0,91608.0,0.05443502]
[1765553142697,0.00232799,91609.0,91608.0,0.00761287]
[1765553142909,0.00232799,91609.0,91608.0,0.28836441]
[1765553143354,0.00332799,91609.0,91608.0,0.29536441]
[1765553143587,0.03623,91658.0,91608.0,0.29536441]
[1765553143588,0.01091059,91654.0,91639.0,0.21824768]
[1765553143843,0.01091059,91654.0,91639.0,0.24485055]
[1765553143844,0.21823363,91645.0,91639.0,0.24485055]
[1765553144048,0.00738,91659.0,91639.0,0.00161287]
[1765553144049,0.2186453,91640.0,91639.0,0.00161287]
[1765553144264,0.0004,91640.0,91639.0,0.00161287]
[1765553144488,0.01091309,91633.0,91631.0,0.01643]
[1765553144715,0.01091309,91633.0,91608.0,0.004]
[1765553144716,0.01091369,91628.0,91625.0,0.01643]
[1765553145578,0.21827627,91627.0,91625.0,0.01643]
[1765553145798,0.01091369,91628.0,91614.0,0.01091536]
[1765553145799,0.0109144,91622.0,91614.0,0.01091536]
[1765553146002,0.22919549,91625.0,91612.0,0.0327468]
[1765553146003,0.21829469,91620.0,91612.0,0.0327468]
[1765553146209,0.01091512,91616.0,91612.0,0.0327468]
[1765553146417,0.03623,91627.0,91614.0,0.01091536]
[1765553146418,0.01091417,91624.0,91614.0,0.01091536]
[1765553146628,0.26344952,91624.0,91619.0,0.02499]
[1765553146840,0.0109144,91622.0,91619.0,0.02499]
[1765553147052,0.02843417,91624.0,91620.0,0.01091464]
[1765553147317,0.01091381,91627.0,91624.0,0.01091417]
[1765553147557,0.01091417,91624.0,91621.0,0.02182905]
[1765553147778,0.01091405,91625.0,91621.0,0.25103406]
[1765553147994,0.01091381,91627.0,91621.0,0.25103406]
[1765553147995,0.01763686,91633.0,91627.0,0.01091381]
[1765553148201,0.00011686,91633.0,91627.0,0.01091381]
[1765553148411,0.00011686,91633.0,91615.0,0.21830354]
[1765553148412,0.21830442,91616.0,91601.0,0.05543]
[1765553148614,0.01091536,91614.0,91611.0,0.01091571]
[1765553148824,0.01091524,91615.0,91611.0,0.01091571]
[1765553149032,0.01091512,91616.0,91613.0,0.01091548]
[1765553149254,0.01091452,91621.0,91617.0,0.010915]
[1765553149461,0.01091512,91616.0,91612.0,0.21831201]
[1765553149690,0.01091464,91620.0,91616.0,0.01091512]
[1765553149897,0.01091488,91618.0,91615.0,0.01091524]
[1765553150104,0.01091464,91620.0,91617.0,0.010915]
[1765553150307,0.01091417,91624.0,91618.0,0.22921259]
[1765553150515,0.01091464,91620.0,91618.0,0.02182977]
[1765553150725,0.21827488,91628.0,91618.0,0.02182977]
[1765553150726,0.01091345,91630.0,91625.0,0.01091405]
[1765553150936,0.01102995,91633.0,91630.0,0.01091345]
[1765553150937,0.00011686,91633.0,91630.0,0.01091345]
[1765553151429,0.01091321,91632.0,91628.0,0.22918751]
[1765553151638,0.00011686,91633.0,91629.0,0.01091357]
[1765553151853,0.01091333,91631.0,91625.0,0.01252692]
[1765553152066,0.21829533,91619.0,91618.0,0.001]
[1765553152297,0.01091536,91614.0,91609.0,0.01091595]
[1765553152509,0.01091571,91611.0,91607.0,0.02183239]
[1765553152726,0.2292326,91610.0,91607.0,0.02183239]
[1765553152931,0.01091524,91615.0,91611.0,0.01091571]
[1765553153147,0.010915,91617.0,91612.0,0.22922681]
[1765553153359,0.03351,91638.0,91612.0,0.22922681]
[1765553153360,0.01091405,91625.0,91619.0,0.01091476]
[1765553153566,0.01091429,91623.0,91619.0,0.01091476]
[1765553153771,0.02850995,91633.0,91621.0,0.01091452]
[1765553153976,0.00011686,91633.0,91630.0,0.22918045]
[1765553154178,0.00011686,91633.0,91630.0,0.22918066]
[1765553154397,0.00011686,91633.0,91632.0,0.02205]
[1765553154837,0.00011686,91633.0,91619.0,0.26149519]
[1765553154838,0.01091452,91621.0,91617.0,0.010915]
[1765553155090,0.01091405,91625.0,91620.0,0.22920546]
[1765553155266,0.01091345,91630.0,91623.0,0.01091429]
[1765553155467,0.01091321,91632.0,91628.0,0.01091369]
[1765553155675,0.01091333,91631.0,91627.0,0.01091381]
[1765553155825,0.01091393,91626.0,91620.0,0.01091464]
[1765553156031,0.01091417,91624.0,91617.0,0.21991079]
[1765553156227,0.21827091,91630.0,91623.0,0.2182858]
[1765553156228,0.01091381,91627.0,91623.0,0.2182858]
[1765553156428,0.01091393,91626.0,91622.0,0.0109144]
[1765553156655,0.01091393,91626.0,91623.0,0.01091429]
[1765553156860,0.01091393,91626.0,91622.0,0.0109144]
[1765553157163,0.01091464,91620.0,91617.0,0.00161287]
[1765553157331,0.01091464,91620.0,91608.0,0.01748]
[1765553157332,0.01091464,91620.0,91606.0,0.01091631]
[1765553157333,0.01091595,91609.0,91606.0,0.01091631]
[1765553157515,0.22923761,91608.0,91606.0,0.02183263]
[1765553157738,0.01091607,91608.0,91603.0,0.03275001]
[1765553157943,0.01091595,91609.0,91601.0,0.02890691]
[1765553158198,0.22922779,91612.0,91607.0,0.22923806]
[1765553158376,0.01091595,91609.0,91602.0,0.21833358]
[1765553158557,0.01091619,91607.0,91602.0,0.21833584]
[1765553158759,0.01091607,91608.0,91605.0,0.01091643]
[1765553158997,0.22923102,91611.0,91605.0,0.01091643]
[1765553158998,0.01091571,91611.0,91606.0,0.22924027]
[1765553159185,0.2292326,91610.0,91605.0,0.01091643]
[1765553159386,0.01091619,91607.0,91603.0,0.01091667]
[1765553159626,0.01091619,91607.0,91603.0,0.00161287]
[1765553159627,0.22924619,91605.0,91603.0,0.00161287]
[1765553160294,0.21833346,91603.0,91602.0,0.006]
[1765553160862,0.01748,91608.0,91605.0,0.01091643]
[1765553160992,0.01748,91608.0,91607.0,0.02205]
[1765553160993,0.24671816,91608.0,91607.0,0.02205]
[1765553161192,0.22923761,91608.0,91605.0,0.00161287]
[1765553161391,0.22923761,91608.0,91603.0,0.004]
[1765553161393,0.22923761,91608.0,91603.0,0.006]
[1765553161394,0.21833107,91604.0,91603.0,0.006]
[1765553161710,0.62635907,91604.0,91603.0,0.006]
[1765553161908,0.21837905,91584.0,91582.0,0.01667]
[1765553162134,0.01748,91583.0,91582.0,0.01705785]
[1765553162310,0.01748,91583.0,91582.0,0.00038785]
[1765553162679,0.12502169,91583.0,91582.0,0.00038785]
[1765553162897,0.07414,91583.0,91582.0,0.00038785]
[1765553163107,0.117328,91583.0,91582.0,0.00038785]
[1765553163643,0.408028,91583.0,91582.0,0.00038785]
[1765553164032,0.410028,91583.0,91582.0,0.00038785]
[1765553164232,0.52053562,91583.0,91582.0,0.00038785]
[1765553164548,0.54348637,91583.0,91582.0,0.00038785]
[1765553164790,0.54148637,91583.0,91582.0,0.00038785]
[1765553164958,0.54148637,91583.0,91542.0,0.01398]
[1765553164959,0.01092323,91548.0,91542.0,0.01398]
[1765553165184,0.01131252,91548.0,91545.0,0.00394167]
[1765553165525,0.043188,91546.0,91545.0,0.0023288]
[1765553165725,0.02315,91546.0,91545.0,0.0023288]
[1765553165921,0.01752,91546.0,91545.0,0.0023288]
[1765553166262,0.21846701,91547.0,91545.0,0.0023288]
[1765553166465,0.01752,91546.0,91545.0,0.0023288]
[1765553167115,0.01131252,91548.0,91545.0,0.0023288]
[1765553167319,0.01748,91546.0,91545.0,0.0023288]
[1765553167531,0.01131252,91548.0,91545.0,0.00394167]
[1765553167687,0.01748,91547.0,91545.0,0.00394167]
[1765553167902,0.001,91547.0,91545.0,0.00394167]
[1765553168109,0.01748,91546.0,91545.0,0.00394167]
[1765553168310,0.2297779,91548.0,91545.0,0.00394167]
[1765553168536,0.001,91546.0,91545.0,0.00394167]
[1765553169113,0.01848,91546.0,91545.0,0.00494167]
[1765553169736,0.00038929,91548.0,91545.0,0.00494167]
[1765553169737,0.2297779,91548.0,91545.0,0.00494167]
[1765553169898,0.2184694,91546.0,91545.0,0.00494167]
[1765553170098,0.2184694,91546.0,91545.0,0.0033288]
[1765553170352,0.2184694,91546.0,91545.0,0.0023288]
[1765553170552,0.3193174,91546.0,91545.0,0.0023288]
[1765553170840,0.3193174,91546.0,91545.0,0.0033288]
[1765553171053,0.40109838,91546.0,91545.0,0.0033288]
[1765553171521,0.40009838,91546.0,91545.0,0.0023288]
[1765553172316,0.48391707,91546.0,91545.0,0.0023288]
[1765553172652,0.48391707,91546.0,91508.0,0.01621]
[1765553172653,0.55237649,91538.0,91508.0,0.01621]
[1765553172866,0.55237649,91538.0,91500.0,10.0004094]
[1765553172867,0.0109286,91503.0,91500.0,10.0004094]
[1765553173020,0.23609445,91502.0,91500.0,10.00202227]
[1765553173401,0.010928,91508.0,91503.0,0.0109286]
[1765553173600,0.21854698,91514.0,91508.0,0.01609]
[1765553173824,0.01752,91511.0,91510.0,0.01092776]
[1765553173999,0.01790905,91511.0,91510.0,0.00161287]
[1765553174210,0.21847409,91545.0,91530.0,0.01092537]
[1765553174419,0.01696,91563.0,91530.0,0.01253824]
[1765553174420,0.01092442,91538.0,91530.0,0.01253824]
[1765553174616,0.03351,91537.0,91531.0,0.02185052]
[1765553174818,0.03351,91537.0,91524.0,0.21852085]
[1765553174819,0.01092526,91531.0,91526.0,0.01092585]
[1765553175066,0.01092585,91526.0,91523.0,0.00161287]
[1765553175238,0.2294449,91526.0,91523.0,0.00161287]
[1765553175441,0.2294449,91526.0,91510.0,0.02185553]
[1765553175442,0.21850983,91530.0,91509.0,0.21855773]
[1765553175443,0.22946753,91517.0,91509.0,0.21855773]
[1765553175647,0.01092693,91517.0,91513.0,0.0109274]
[1765553175848,0.2185243,91523.0,91516.0,0.01092705]
[1765553176093,0.01092681,91518.0,91514.0,0.01092728]
[1765553176257,0.21853043,91521.0,91514.0,0.01092728]
[1765553176258,0.01092645,91521.0,91517.0,0.01092693]
[1765553176673,0.01092657,91520.0,91517.0,0.00161287]
[1765553177027,0.23604147,91525.0,91517.0,0.00161287]
[1765553177028,0.24696744,91525.0,91519.0,0.01092669]
[1765553177229,0.24696744,91525.0,91517.0,0.0125398]
[1765553177230,0.04011,91518.0,91517.0,0.00161287]
[1765553177584,0.083298,91518.0,91517.0,0.00161287]
[1765553177826,0.2185649,91506.0,91501.0,0.02185768]
[1765553178003,0.01092764,91511.0,91507.0,0.01092812]
[1765553178206,0.01092717,91515.0,91510.0,0.01092776]
[1765553178371,0.21855057,91512.0,91507.0,0.01254099]
[1765553178768,0.0109274,91513.0,91507.0,0.01254099]
[1765553179013,0.01092776,91510.0,91507.0,0.0017298]
[1765553179212,0.01964,91508.0,91507.0,0.00011693]
[1765553179413,0.093568,91508.0,91507.0,0.00011693]
[1765553180477,0.05038,91508.0,91507.0,0.00011693]
[1765553180678,0.13261809,91508.0,91507.0,0.00011693]
[1765553180925,0.21855773,91509.0,91507.0,0.00011693]
[1765553181129,0.01948,91508.0,91507.0,0.00011693]
[1765553181363,0.01748,91508.0,91507.0,0.00011693]
[1765553181870,0.003,91508.0,91507.0,0.0017298]
[1765553182074,0.001,91508.0,91507.0,0.0213398]
[1765553182307,0.001,91508.0,91507.0,0.0948698]
[1765553182480,0.001,91508.0,91507.0,0.0017298]
[1765553183078,0.21855967,91509.0,91507.0,0.0017298]
[1765553183500,0.21855773,91509.0,91507.0,0.0017298]
[1765553183869,0.001,91508.0,91507.0,0.0017298]
[1765553184186,0.21855773,91509.0,91507.0,0.0027298]
[1765553184524,0.01092776,91510.0,91507.0,0.0027298]
[1765553184734,0.01092776,91510.0,91507.0,0.0017298]
[1765553185076,0.21855773,91509.0,91507.0,0.0027298]
[1765553185261,0.21855773,91509.0,91508.0,0.00108184]
[1765553185466,0.23966773,91509.0,91508.0,0.00108184]
[1765553185666,0.27003773,91509.0,91508.0,0.00108184]
[1765553185868,0.28751773,91509.0,91508.0,0.00108184]
[1765553186234,0.33070573,91509.0,91508.0,0.00108184]
[1765553186532,0.28751773,91509.0,91508.0,0.00108184]
[1765553186732,0.33070573,91509.0,91508.0,0.00108184]
[1765553187593,0.28851773,91509.0,91508.0,0.00108184]
[1765553187761,0.28851773,91509.0,91473.0,0.01]
[1765553187762,0.57357484,91501.0,91500.0,9.5609994]
[1765553187958,0.57357484,91501.0,91500.0,9.24805845]
[1765553188395,0.23968684,91501.0,91500.0,9.24967132]
[1765553188551,0.21857684,91501.0,91500.0,9.24967132]
[1765553188715,0.22950246,91503.0,91500.0,9.24967132]
[1765553188940,0.002,91501.0,91500.0,9.24967132]
[1765553189151,0.002,91501.0,91500.0,9.24805845]
[1765553189599,0.02048,91501.0,91500.0,9.24805845]
[1765553189877,0.02052,91501.0,91500.0,9.24967132]
[1765553190839,0.003,91501.0,91500.0,9.24967132]
[1765553191928,0.003,91501.0,91500.0,9.24805845]
[1765553192131,0.003,91501.0,91500.0,9.24967132]
[1765553193337,0.003,91501.0,91500.0,9.2499053]
[1765553193920,0.003,91501.0,91500.0,9.24829243]
[1765553193921,0.05421853,91501.0,91500.0,9.24829243]
[1765553194086,0.09740653,91501.0,91500.0,9.24829243]
[1765553195274,0.05421853,91501.0,91500.0,9.24829243]
[1765553195439,0.09740653,91501.0,91500.0,9.24829243]
[1765553195656,0.09740653,91501.0,91500.0,8.93496243]
[1765553196156,0.003,91501.0,91500.0,8.93496243]
[1765553196357,1.41600639,91501.0,91500.0,7.1881272]
[1765553196566,1.43893093,91501.0,91500.0,6.5614672]
[1765553196692,1.42141093,91501.0,91500.0,6.5614672]
[1765553196925,1.43893093,91501.0,91500.0,5.89150822]
[1765553197128,1.43593093,91501.0,91500.0,5.64866478]
[1765553197328,1.4567275,91501.0,91500.0,5.2725938]
[1765553197527,1.4617275,91501.0,91500.0,4.79507237]
[1765553197752,1.4617275,91501.0,91500.0,4.45280579]
[1765553198076,1.4617275,91501.0,91500.0,4.0872106]
[1765553198077,1.57223512,91501.0,91500.0,4.0872106]
[1765553198246,1.57223512,91501.0,91500.0,3.89845734]
[1765553198418,1.56723512,91501.0,91500.0,3.05238623]
[1765553198617,1.57523512,91501.0,91500.0,2.4692315]
[1765553198915,1.57123512,91501.0,91500.0,2.04712446]
[1765553199122,1.60408679,91501.0,91500.0,2.01430593]
[1765553199358,1.61008679,91501.0,91500.0,1.28929531]
[1765553199554,1.61008679,91501.0,91500.0,0.42792941]
[1765553199868,0.00099999,91460.0,91414.0,0.01093924]
[1765553200074,0.01093697,91433.0,91420.0,0.01093852]
[1765553200248,0.2907,91449.0,91420.0,0.01093852]
[1765553200249,0.01093816,91423.0,91420.0,0.00161287]
[1765553200457,0.01752,91432.0,91420.0,0.00161287]
[1765553200675,0.01752,91431.0,91420.0,0.00161287]
[1765553200872,0.01093541,91446.0,91425.0,0.21875741]
[1765553201077,0.01752,91439.0,91433.0,0.01093697]
[1765553201239,0.043188,91447.0,91433.0,0.00161287]
[1765553201441,0.01093613,91440.0,91433.0,0.00161287]
[1765553201649,0.01093565,91444.0,91433.0,0.00161287]
[1765553201910,0.04357664,91447.0,91433.0,0.00161287]
[1765553202143,0.043188,91441.0,91433.0,0.00161287]
[1765553202337,0.043188,91441.0,91422.0,0.2187634]
[1765553202338,0.01093673,91435.0,91418.0,0.01093876]
[1765553202477,0.043188,91427.0,91420.0,0.002]
[1765553202687,0.0109378,91426.0,91420.0,0.002]
[1765553202881,0.01093792,91425.0,91419.0,0.00161287]
[1765553203078,0.043188,91427.0,91420.0,0.01093852]
[1765553203287,0.21870491,91448.0,91420.0,0.01093852]
[1765553203288,0.01093493,91450.0,91426.0,0.23997902]
[1765553203489,0.01093577,91443.0,91427.0,0.26023848]
[1765553203675,0.043188,91441.0,91435.0,0.01093673]
[1765553203876,0.043188,91441.0,91433.0,0.003]
[1765553204141,0.01752,91440.0,91433.0,0.00161287]
[1765553204335,0.01093625,91439.0,91433.0,0.00161287]
[1765553205040,0.01093637,91438.0,91433.0,0.00461287]
[1765553205250,0.21873462,91435.0,91433.0,0.00461287]
[1765553205449,0.2187083,91446.0,91433.0,0.00161287]
[1765553205653,0.01093625,91439.0,91433.0,0.00161287]
[1765553205952,0.001,91439.0,91433.0,0.00561287]
[1765553206176,0.27285888,91436.0,91433.0,0.00561287]
[1765553206378,0.22967088,91436.0,91433.0,0.00561287]
[1765553206517,0.22967088,91436.0,91433.0,0.004]
[1765553206718,0.27285888,91436.0,91435.0,0.0019025]
[1765553207191,0.34826586,91436.0,91435.0,0.0019025]
[1765553207324,0.27285888,91436.0,91435.0,0.0019025]
[1765553207522,0.22967088,91436.0,91435.0,0.0019025]
[1765553207953,0.27385888,91436.0,91435.0,0.0059025]
[1765553208153,0.23067088,91436.0,91435.0,0.0059025]
[1765553208350,0.27385888,91436.0,91435.0,0.0059025]
[1765553208757,0.27285888,91436.0,91435.0,0.0019025]
[1765553208961,0.27285888,91436.0,91399.0,0.21881874]
[1765553208962,0.21881298,91403.0,91401.0,0.01]
[1765553209159,0.060708,91402.0,91401.0,0.01]
[1765553209360,0.01752,91402.0,91401.0,0.01]
[1765553209822,0.11601001,91402.0,91401.0,0.01]
[1765553210023,0.44621169,91402.0,91400.0,0.0026]
[1765553210230,0.44621169,91402.0,91361.0,0.03451]
[1765553210231,0.44621169,91402.0,91354.0,0.01094642]
[1765553210232,0.01094487,91367.0,91354.0,0.01094642]
[1765553210434,0.01094511,91365.0,91354.0,0.00161287]
[1765553210641,0.043188,91366.0,91354.0,0.00161287]
[1765553210642,0.043188,91366.0,91355.0,0.0109463]
[1765553210857,0.0109475,91345.0,91330.0,0.0109493]
[1765553211070,0.0109475,91345.0,91339.0,0.01094822]
[1765553211071,0.043188,91345.0,91339.0,0.01094822]
[1765553211347,0.043188,91342.0,91339.0,0.00161287]
[1765553211561,0.01133542,91345.0,91322.0,0.02190052]
[1765553211562,0.01094774,91343.0,91322.0,0.02190052]
[1765553211802,0.21895253,91344.0,91322.0,0.00161287]
[1765553211803,0.01094906,91332.0,91322.0,0.00161287]
[1765553212044,0.043188,91326.0,91320.0,0.0002]
[1765553212489,0.01756,91339.0,91325.0,0.00161287]
[1765553212718,0.08296026,91370.0,91325.0,0.00161287]
[1765553212719,0.043188,91337.0,91329.0,0.70046992]
[1765553212945,0.0176,91369.0,91344.0,0.04948]
[1765553213177,0.27956581,91400.0,91344.0,0.13001212]
[1765553213178,0.01094558,91361.0,91344.0,0.13001212]
[1765553213394,0.0176,91374.0,91344.0,0.13001212]
[1765553213395,0.00138792,91345.0,91344.0,0.12947865]
[1765553213649,0.00138792,91345.0,91344.0,0.01078865]
[1765553213650,0.00038792,91345.0,91344.0,0.01078865]
[1765553213865,0.00038792,91345.0,91329.0,0.005]
[1765553213866,0.22992555,91334.0,91329.0,0.005]
[1765553214084,0.043188,91330.0,91329.0,0.005]
[1765553214308,0.043188,91330.0,91309.0,0.00745804]
[1765553214309,0.22991525,91338.0,91320.0,0.0111505]
[1765553214525,0.01764,91348.0,91320.0,0.0111505]
[1765553214526,0.01094966,91327.0,91320.0,0.00181287]
[1765553214741,0.00138792,91345.0,91335.0,0.0109487]
[1765553214982,0.00038792,91345.0,91344.0,0.00266711]
[1765553215409,1.38429431,91345.0,91344.0,0.00266711]
[1765553215634,0.31219248,91330.0,91329.0,0.005]
[1765553215853,0.06765839,91330.0,91329.0,0.005]
[1765553216068,0.01764,91330.0,91329.0,0.005]
[1765553216271,0.06765839,91330.0,91329.0,0.005]
[1765553216489,0.06765839,91330.0,91321.0,0.01095038]
[1765553216692,0.06765839,91330.0,91320.0,0.0111505]
[1765553216693,0.06765839,91330.0,91320.0,0.0002]
[1765553216694,0.21900767,91321.0,91320.0,0.0002]
[1765553216897,0.09320639,91321.0,91320.0,0.0002]
[1765553217067,0.060828,91321.0,91320.0,0.0002]
[1765553217288,0.05001839,91322.0,91320.0,0.0002]
[1765553217289,0.01094942,91329.0,91320.0,0.00181287]
[1765553217490,0.06765839,91330.0,91329.0,0.003]
[1765553217694,0.11084639,91330.0,91321.0,0.01095038]
[1765553217896,0.11084639,91330.0,91320.0,0.01276337]
[1765553217897,0.26902366,91322.0,91320.0,0.0002]
[1765553218141,0.05001839,91321.0,91320.0,0.0002]
[1765553218278,0.09320639,91321.0,91320.0,0.0002]
[1765553218493,0.38390639,91321.0,91320.0,0.0002]
[1765553218708,0.38390639,91321.0,91320.0,0.0032]
[1765553218915,0.34071839,91321.0,91320.0,0.0032]
[1765553219115,0.34071839,91321.0,91309.0,0.00745804]
[1765553219116,0.21900527,91322.0,91316.0,0.0139972]
[1765553219117,0.60292365,91317.0,91316.0,0.0139972]
[1765553219328,0.60292365,91317.0,91249.0,0.10372]
[1765553219329,0.01095566,91277.0,91257.0,0.23011777]
[1765553219555,0.01095506,91282.0,91265.0,0.0109571]
[1765553219556,0.043188,91275.0,91265.0,0.0109571]
[1765553219806,0.01095566,91277.0,91274.0,0.00170287]
[1765553219976,0.01764,91278.0,91275.0,0.0109559]
[1765553220180,0.01764,91278.0,91275.0,0.00161287]
[1765553220331,0.01764,91278.0,91277.0,0.00161287]
[1765553220332,0.00038745,91278.0,91277.0,0.00161287]
[1765553220531,0.00038745,91278.0,91277.0,0.01230724]
[1765553220758,0.00038745,91278.0,91277.0,0.08262735]
[1765553220998,0.00038745,91278.0,91274.0,0.22021014]
[1765553220999,0.34071839,91317.0,91274.0,0.22021014]
[1765553221000,0.0346,91327.0,91325.0,0.21899808]
[1765553221207,0.5,91380.0,91350.0,0.0109469]
[1765553221208,0.01094487,91367.0,91350.0,0.0109469]
[1765553221415,0.05398133,91366.0,91351.0,0.02912]
[1765553221617,0.02735978,91375.0,91374.0,0.01094403]
[1765553221821,0.22977584,91394.0,91368.0,0.01094475]
[1765553221822,0.21884583,91389.0,91368.0,0.01094475]
[1765553222022,0.02735588,91388.0,91371.0,0.01094439]
[1765553222240,0.03278671,91387.0,91373.0,0.01094415]
[1765553222399,0.03278671,91387.0,91370.0,0.01094451]
[1765553222400,0.02735648,91386.0,91374.0,0.01094403]
[1765553222762,0.00038792,91386.0,91375.0,0.21887644]
[1765553223026,0.00038792,91386.0,91380.0,0.01094331]
[1765553223219,0.00038792,91386.0,91383.0,0.2297998]
[1765553223648,0.00038792,91386.0,91379.0,0.01094343]
[1765553223649,0.01093708,91432.0,91407.0,0.21880162]
[1765553223774,0.0109378,91426.0,91407.0,0.23659079]
[1765553223979,0.01093756,91428.0,91407.0,0.23659079]
[1765553223980,0.01093625,91439.0,91407.0,0.30580079]
[1765553224182,0.01093661,91436.0,91407.0,0.30580079]
[1765553224383,0.01093852,91420.0,91407.0,0.00010917]
[1765553224586,0.02733764,91449.0,91407.0,0.00010917]
[1765553224587,0.01093972,91410.0,91407.0,0.00010917]
[1765553224836,0.03229793,91408.0,91407.0,0.00010917]
[1765553225005,0.00494803,91408.0,91407.0,0.00010917]